bitfinex/quotes_ETHUSD_20230113
["timestamp","ask_amount","ask_price","bid_price","bid_amount"]
[1673585045152,2.6481882,1411.8,1411.6,21.25215]
[1673585045903,5.99111376,1411.8,1411.6,21.25215]
[1673585046213,4.29994186,1411.8,1411.6,21.25215]
[1673585046378,4.23394186,1411.8,1411.6,21.25215]
[1673585046587,2.6481882,1411.8,1411.6,21.25215]
[1673585059992,5.99109421,1411.8,1411.6,21.25215]
[1673585060221,4.29994186,1411.8,1411.6,21.25215]
[1673585060375,2.6481882,1411.8,1411.6,21.25215]
[1673585061165,2.6481882,1411.8,1411.6,22.31372263]
[1673585064746,2.6481882,1411.8,1411.6,22.31113415]
[1673585066577,1.05718016,1411.8,1411.6,22.31113415]
[1673585066791,2.81428085,1411.8,1411.6,22.31113415]
[1673585074177,4.40003451,1411.8,1411.6,22.31113415]
[1673585074564,2.64293382,1411.8,1411.6,22.31113415]
[1673585074778,2.81428918,1411.8,1411.6,22.31113415]
[1673585077221,2.81428918,1411.8,1411.6,23.89398351]
[1673585077814,2.81428918,1411.8,1411.6,22.31113415]
[1673585079293,4.40004284,1411.8,1411.6,22.31113415]
[1673585079503,1.05718016,1411.8,1411.6,22.31113415]
[1673585079752,2.81428548,1411.8,1411.6,22.31113415]
[1673585085399,2.81131243,1411.8,1411.6,22.31113415]
[1673585085878,2.81131243,1411.8,1411.6,23.89398351]
[1673585088860,1.05420711,1411.8,1411.7,1.06157263]
[1673585089072,1.05420711,1411.8,1411.7,22.31252263]
[1673585089319,1.05420711,1411.8,1411.7,22.31303188]
[1673585089952,1.05420711,1411.8,1411.7,21.25095]
[1673585090167,1.05420711,1411.8,1411.7,20.19672887]
[1673585090540,2.81123524,1411.8,1411.7,20.19672887]
[1673585091401,2.81126095,1411.8,1411.7,20.19672887]
[1673585091640,1.05420711,1411.8,1411.7,20.19672887]
[1673585091852,2.81126095,1411.8,1411.7,20.19672887]
[1673585095336,1.05420711,1411.8,1411.7,20.19672887]
[1673585096073,2.81125016,1411.8,1411.7,20.19672887]
[1673585096292,1.05420711,1411.8,1411.7,20.19672887]
[1673585098086,2.70596077,1411.9,1411.7,21.2588189]
[1673585098306,2.63996077,1411.9,1411.7,22.7578189]
[1673585098477,4.3969783,1411.9,1411.7,22.7578189]
[1673585100362,4.3969783,1411.9,1411.7,22.75492121]
[1673585101361,1.05420711,1411.8,1411.7,21.69283118]
[1673585102604,2.63996077,1411.9,1411.7,22.75492121]
[1673585102939,4.3969836,1411.9,1411.7,22.75492121]
[1673585103156,1.05420711,1411.9,1411.8,4.06809003]
[1673585103494,2.63996077,1412.0,1411.8,30.31754003]
[1673585103673,1.05420711,1412.0,1411.9,4.507]
[1673585104049,1.05420711,1412.0,1411.9,27.75495]
[1673585104268,2.63996077,1412.1,1411.9,33.41334123]
[1673585104464,1.12020711,1412.2,1412.1,14.1633]
[1673585104668,4.39657135,1412.2,1412.1,23.87418596]
[1673585104921,2.81081769,1412.2,1412.1,23.87418596]
[1673585105106,4.39657135,1412.2,1412.1,23.87418596]
[1673585105760,2.81081769,1412.2,1412.1,23.87418596]
[1673585106354,4.39657135,1412.2,1412.1,23.87418596]
[1673585106775,3.34236424,1412.2,1412.1,23.87418596]
[1673585106994,5.45896619,1412.2,1412.1,23.87418596]
[1673585107269,3.40836424,1412.2,1412.1,23.87418596]
[1673585107440,3.34236424,1412.2,1412.1,23.87418596]
[1673585107862,2.81264623,1412.2,1412.1,23.87418596]
[1673585108402,4.39839989,1412.2,1412.1,23.87418596]
[1673585110714,3.34236424,1412.2,1412.1,23.87418596]
[1673585110880,4.3978179,1412.2,1412.1,23.87418596]
[1673585112033,2.81206424,1412.2,1412.1,23.87418596]
[1673585112241,2.81217156,1412.2,1412.1,23.87418596]
[1673585112485,1.05545366,1412.2,1412.1,23.87418596]
[1673585112699,2.81217203,1412.2,1412.1,23.87418596]
[1673585114484,2.81217203,1412.2,1412.1,23.87618596]
[1673585114842,2.81217203,1412.2,1412.1,23.87418596]
[1673585121799,2.81217203,1412.2,1412.1,16.79253596]
[1673585124820,2.81217203,1412.2,1412.1,14.91867336]
[1673585127122,11.34490732,1412.3,1412.1,14.91867336]
[1673585127334,2.81219538,1412.2,1412.1,14.91867336]
[1673585128186,14.81776407,1412.3,1412.1,7.83702336]
[1673585128363,16.81776407,1412.3,1412.1,6.33402336]
[1673585128572,1.05545366,1412.2,1412.1,6.33402336]
[1673585128919,2.81215652,1412.2,1412.1,6.33402336]
[1673585129341,10.07593593,1412.2,1412.0,1.56732589]
[1673585129652,10.07593593,1412.2,1411.8,9.64383003]
[1673585129653,4.39779013,1412.1,1411.8,0.066]
[1673585129964,1.05533361,1412.0,1411.7,8.2125]
[1673585130187,4.31229585,1412.0,1411.7,8.2125]
[1673585130341,10.5752624,1412.0,1411.7,8.2125]
[1673585130550,10.6412624,1412.0,1411.7,8.2125]
[1673585131022,13.27675192,1412.0,1411.7,8.2125]
[1673585131195,13.27675192,1412.0,1411.8,3.0]
[1673585131652,36.79725306,1412.0,1411.7,0.066]
[1673585131810,17.49337519,1411.9,1411.6,1.06209003]
[1673585132026,17.55937519,1411.9,1411.6,1.06209003]
[1673585132230,1.75157042,1411.8,1411.5,16.07028685]
[1673585132491,1.75157042,1411.8,1411.5,23.08894685]
[1673585132860,1.75157042,1411.8,1411.6,3.0]
[1673585135625,1.75157042,1411.8,1411.6,10.08413]
[1673585138720,1.75157042,1411.8,1411.6,10.13413]
[1673585140719,1.75157042,1411.8,1411.6,10.08413]
[1673585145930,1.75157042,1411.8,1411.6,10.08613]
[1673585146140,1.75157042,1411.8,1411.6,10.08413]
[1673585148825,15.08462884,1411.8,1411.6,3.0]
[1673585149031,4.11615704,1411.7,1411.6,3.0]
[1673585149504,4.11615704,1411.7,1411.5,7.30619682]
[1673585149714,2.11615704,1411.7,1411.5,7.24019682]
[1673585150868,2.11615704,1411.7,1411.5,7.29019682]
[1673585151081,1.15215704,1411.7,1411.5,7.24019682]
[1673585160851,0.95432365,1411.6,1411.5,7.24019682]
[1673585161116,0.95137842,1411.6,1411.5,3.15574682]
[1673585176206,0.95137842,1411.6,1411.5,10.24040682]
[1673585176552,0.95137842,1411.6,1411.5,28.55766621]
[1673585176920,0.95137842,1411.6,1411.5,27.49557618]
[1673585180289,0.95137842,1411.6,1411.5,27.49757618]
[1673585180503,0.95137842,1411.6,1411.5,27.49557618]
[1673585183076,0.94882933,1411.6,1411.5,27.49557618]
[1673585183449,0.89882933,1411.6,1411.5,27.49557618]
[1673585185019,0.89882933,1411.6,1411.5,28.55672012]
[1673585187678,0.89882933,1411.6,1411.5,27.49557618]
[1673585193367,0.89882933,1411.6,1411.5,28.55644864]
[1673585193912,0.89882933,1411.6,1411.5,27.49557618]
[1673585194231,0.89882933,1411.6,1411.5,28.55641166]
[1673585194601,0.89882933,1411.6,1411.5,28.55641814]
[1673585199016,0.89882933,1411.6,1411.5,28.88228214]
[1673585201947,0.89882933,1411.6,1411.5,27.29943278]
[1673585203196,0.89882933,1411.6,1411.5,27.29775653]
[1673585203397,0.89882933,1411.6,1411.5,27.29575653]
[1673585203605,0.89882933,1411.6,1411.5,28.87860589]
[1673585205674,0.89882933,1411.6,1411.5,27.29575653]
[1673585206620,0.89882933,1411.6,1411.5,28.87860589]
[1673585206892,0.89882933,1411.6,1411.5,28.92860589]
[1673585207071,0.89882933,1411.6,1411.5,27.34575653]
[1673585207382,0.89882933,1411.6,1411.5,28.92860589]
[1673585208825,0.89882933,1411.6,1411.5,28.87860589]
[1673585209491,0.89882933,1411.6,1411.5,26.31476393]
[1673585211276,0.89882933,1411.6,1411.5,27.37604858]
[1673585211447,0.89882933,1411.6,1411.5,26.31476393]
[1673585212237,0.89882933,1411.6,1411.5,27.37630492]
[1673585213373,0.98871226,1411.6,1411.5,3.12232492]
[1673585213546,8.91470729,1411.6,1411.5,0.47793457]
[1673585213757,28.15928576,1411.6,1411.3,1.06154099]
[1673585214011,2.81337261,1411.5,1411.3,1.06154099]
[1673585214221,2.11075617,1411.6,1411.4,1.06154099]
[1673585214403,1.95487324,1411.6,1411.4,1.06154099]
[1673585215435,1.95487324,1411.6,1411.4,4.64439035]
[1673585215862,1.95487324,1411.6,1411.4,2.64439035]
[1673585216184,1.95487324,1411.6,1411.4,4.64439035]
[1673585216401,0.89882933,1411.6,1411.5,1.06154099]
[1673585216670,0.89882933,1411.6,1411.5,4.06154099]
[1673585216808,0.89882933,1411.6,1411.5,28.07132139]
[1673585217222,0.89882933,1411.6,1411.5,27.0097804]
[1673585219586,0.89882933,1411.6,1411.5,28.5167804]
[1673585223263,0.89882933,1411.6,1411.5,28.5667804]
[1673585225210,0.89882933,1411.6,1411.5,28.5167804]
[1673585227468,0.89882933,1411.6,1411.5,27.34382936]
[1673585227680,0.89882933,1411.6,1411.5,28.40545392]
[1673585229422,0.89882933,1411.6,1411.5,26.82260456]
[1673585230265,0.89882933,1411.6,1411.5,4.06162456]
[1673585230476,0.89882933,1411.6,1411.5,1.06162456]
[1673585230679,0.89882933,1411.6,1411.3,2.71047392]
[1673585230680,21.58603807,1411.6,1411.3,2.71047392]
[1673585230886,26.78059489,1411.6,1411.3,2.64447392]
[1673585231327,30.38692761,1411.6,1411.3,2.64447392]
[1673585231515,31.97268127,1411.6,1411.3,1.06162456]
[1673585231725,5.19726813,1411.5,1411.3,1.06162456]
[1673585231981,13.40408204,1411.5,1411.3,4.06162456]
[1673585232362,12.34803813,1411.5,1411.3,3.0]
[1673585232880,12.34803813,1411.5,1411.2,5.86625365]
[1673585233122,1.23480381,1411.4,1411.2,4.21740429]
[1673585234145,1.23947438,1411.4,1411.2,4.21740429]
[1673585234366,1.23947438,1411.4,1411.2,3.15577973]
[1673585235645,1.23947438,1411.4,1411.2,4.21740429]
[1673585235881,0.00467057,1411.4,1411.2,3.15577973]
[1673585236032,0.00467057,1411.4,1411.2,4.21740429]
[1673585236243,0.00467057,1411.4,1411.2,3.15577973]
[1673585236454,0.001545,1411.4,1411.2,3.15577973]
[1673585236929,3.79975081,1411.4,1411.2,3.15577973]
[1673585237986,3.79975081,1411.4,1411.2,10.24189973]
[1673585238882,3.79975081,1411.4,1411.2,10.24389973]
[1673585239093,3.79975081,1411.4,1411.2,10.24189973]
[1673585239553,3.79975081,1411.4,1411.2,3.15577973]
[1673585239769,0.37997508,1411.3,1411.2,3.15577973]
[1673585240408,7.46563508,1411.3,1411.2,3.15577973]
[1673585240583,7.53163508,1411.3,1411.2,3.15577973]
[1673585241119,16.12429508,1411.3,1411.2,3.15577973]
[1673585241299,16.12429508,1411.3,1411.2,0.15577973]
[1673585241731,18.12429508,1411.3,1411.2,0.15577973]
[1673585242395,16.12429508,1411.3,1411.2,0.15577973]
[1673585243865,25.71748622,1411.3,1411.0,0.16397703]
[1673585244032,17.18232,1411.1,1410.9,5.5318423]
[1673585244242,17.18232,1411.1,1410.9,5.5258423]
[1673585244243,6.59733272,1411.0,1410.9,5.5258423]
[1673585244497,22.21609799,1411.0,1410.9,5.5258423]
[1673585245305,2.0,1410.9,1410.8,0.2302779]
[1673585245563,19.28867272,1410.9,1410.8,0.1642779]
[1673585245752,19.35467272,1410.9,1410.8,0.1642779]
[1673585246076,12.26700272,1410.9,1410.8,0.1642779]
[1673585246254,15.35502252,1410.9,1410.8,0.1642779]
[1673585246465,11.7486898,1410.9,1410.8,0.1642779]
[1673585247601,11.7486898,1410.9,1410.8,0.1142779]
[1673585249099,18.8363598,1410.9,1410.8,0.1142779]
[1673585250330,11.7486898,1410.9,1410.8,0.1142779]
[1673585250548,0.066,1410.9,1410.8,0.1142779]
[1673585250804,16.57034,1410.9,1410.8,0.1142779]
[1673585251115,23.72401,1410.9,1410.8,0.1142779]
[1673585259221,0.066,1410.9,1410.8,0.1142779]
[1673585259394,8.7176,1411.0,1410.8,0.1142779]
[1673585260456,0.066,1411.0,1410.8,0.1142779]
[1673585260706,29.71674,1411.1,1410.8,2.26990633]
[1673585261615,29.71674,1411.1,1410.8,5.26990633]
[1673585263278,31.21374,1411.1,1410.8,3.1142779]
[1673585263489,7.08767,1410.9,1410.8,3.1142779]
[1673585263749,7.15367,1410.9,1410.8,3.1142779]
[1673585264593,7.15367,1410.9,1410.8,0.1142779]
[1673585264811,7.15367,1410.9,1410.8,3.1142779]
[1673585267008,7.15367,1410.9,1410.8,0.1142779]
[1673585267619,0.066,1410.9,1410.8,0.1142779]
[1673585267987,34.07305,1411.1,1410.8,1.15218533]
[1673585268300,34.07305,1411.1,1410.8,0.1142779]
[1673585271735,32.56705,1411.1,1410.8,0.1142779]
[1673585271945,32.56352785,1411.1,1410.8,0.1142779]
[1673585272367,32.56352785,1411.1,1410.8,1.17590246]
[1673585272772,32.56352785,1411.1,1410.8,0.1142779]
[1673585272983,37.25918359,1411.1,1410.8,0.1142779]
[1673585274499,37.25918359,1411.1,1410.8,1.17590246]
[1673585274966,30.17205359,1411.1,1410.8,8.26404246]
[1673585275269,15.53934785,1411.1,1410.8,8.26404246]
[1673585278371,22.62647785,1411.1,1410.8,8.26404246]
[1673585278582,22.62647785,1411.1,1410.8,9.84689182]
[1673585279992,8.4562,1411.1,1410.9,1.06162456]
[1673585280312,0.066,1411.1,1410.9,22.32457456]
[1673585280472,11.5766,1411.2,1410.9,22.32457456]
[1673585280473,11.6426,1411.2,1410.9,22.32457456]
[1673585280683,11.6426,1411.2,1411.0,3.0]
[1673585280893,11.6426,1411.2,1411.0,11.14856456]
[1673585282798,12.69864391,1411.2,1411.0,3.0]
[1673585283007,11.6426,1411.2,1411.0,4.06162456]
[1673585283263,11.6426,1411.2,1411.0,11.14869456]
[1673585283264,0.066,1411.2,1411.0,11.14869456]
[1673585283474,17.04728391,1411.3,1411.0,11.14869456]
[1673585283638,19.68400135,1411.3,1411.0,11.14869456]
[1673585285008,17.04728391,1411.3,1411.0,11.14869456]
[1673585286032,36.66535142,1411.3,1411.0,4.06162456]
[1673585286154,36.66535142,1411.3,1411.0,3.0]
[1673585286367,41.8574378,1411.3,1411.0,3.0]
[1673585286631,39.22072184,1411.3,1411.0,3.0]
[1673585287950,19.85705546,1411.3,1411.0,4.06162456]
[1673585288290,19.6838973,1411.3,1411.0,11.14875456]
[1673585288481,12.5982373,1411.3,1411.0,11.14875456]
[1673585288946,9.96154391,1411.3,1411.0,11.14875456]
[1673585289341,8.9055,1411.3,1411.0,11.14875456]
[1673585289686,8.9055,1411.3,1411.0,18.23592456]
[1673585290284,15.99119,1411.3,1411.0,19.81877392]
[1673585290511,17.04723391,1411.3,1411.0,18.23592456]
[1673585290718,19.68393602,1411.3,1411.0,18.23592456]
[1673585291060,17.04723391,1411.3,1411.0,18.23592456]
[1673585295825,17.04412341,1411.3,1411.0,18.23592456]
[1673585303245,19.6808144,1411.3,1411.0,18.23592456]
[1673585303961,19.6808144,1411.3,1411.0,11.14875456]
[1673585304178,19.6808144,1411.3,1411.0,3.0]
[1673585304179,21.26656806,1411.3,1411.0,3.0]
[1673585304508,7.08666,1411.1,1411.0,3.0]
[1673585304735,7.15266,1411.1,1410.9,4.1545988]
[1673585304908,7.15266,1411.1,1410.9,4.0885988]
[1673585308890,0.89750753,1411.0,1410.9,4.0885988]
[1673585309465,0.89750753,1411.0,1410.9,4.06162456]
[1673585312629,0.89750753,1411.0,1410.9,18.23696456]
[1673585312839,12.69404391,1411.2,1410.9,26.90748392]
[1673585313060,12.69404391,1411.2,1411.0,1.0616434]
[1673585313397,11.638,1411.2,1411.0,15.2359434]
[1673585313753,11.638,1411.2,1411.0,15.23350243]
[1673585314381,12.69404391,1411.2,1411.0,15.23350243]
[1673585316174,12.69404391,1411.2,1411.0,14.1743]
[1673585317067,1.05604391,1411.1,1410.9,3.066]
[1673585317239,7.08678,1411.1,1410.9,1.94522743]
[1673585317447,7.15278,1411.1,1410.9,1.94522743]
[1673585317856,7.15078,1411.1,1410.9,1.94722743]
[1673585318062,11.39570023,1411.1,1410.9,1.94522743]
[1673585320090,4.30892023,1411.1,1410.9,1.94522743]
[1673585320310,40.84311865,1411.2,1410.9,1.94522743]
[1673585320477,12.69404391,1411.2,1410.9,10.61569679]
[1673585320688,19.78034391,1411.2,1410.9,10.61569679]
[1673585320944,22.41717342,1411.2,1410.9,10.61569679]
[1673585322586,27.45004427,1411.2,1410.9,10.61569679]
[1673585322833,22.41717342,1411.2,1410.9,10.61569679]
[1673585323363,22.41717342,1411.2,1410.9,9.03284743]
[1673585323753,22.41717342,1411.2,1410.9,10.09459039]
[1673585324396,19.78034391,1411.2,1410.9,18.76510975]
[1673585324608,19.78034391,1411.2,1410.9,11.67743975]
[1673585325148,24.21777162,1411.2,1410.9,11.67743975]
[1673585328790,24.21577162,1411.2,1410.9,11.67943975]
[1673585329002,24.21777162,1411.2,1410.9,11.67743975]
[1673585333778,35.54325518,1411.2,1410.9,4.58981975]
[1673585334087,41.99670434,1411.2,1410.9,4.58981975]
[1673585334302,4.19967043,1411.1,1410.9,4.58981975]
[1673585334608,18.37342043,1411.1,1410.9,4.58981975]
[1673585334788,18.43942043,1411.1,1410.9,4.58981975]
[1673585336138,18.43942043,1411.1,1410.9,3.00697039]
[1673585336830,19.49546434,1411.1,1410.9,3.00697039]
[1673585337195,18.43942043,1411.1,1410.9,3.00697039]
[1673585337418,0.066,1411.1,1410.9,11.67731975]
[1673585337635,19.78034391,1411.2,1410.9,11.67731975]
[1673585337838,19.78034391,1411.2,1411.0,1.06174296]
[1673585338452,12.69404391,1411.2,1411.0,1.06174296]
[1673585338661,11.638,1411.2,1411.0,1.06174296]
[1673585339451,16.07540671,1411.2,1411.0,1.06174296]
[1673585340621,17.13145062,1411.2,1411.0,1.06174296]
[1673585341965,16.07260497,1411.2,1411.0,1.06174296]
[1673585342177,16.07260497,1411.2,1411.0,2.64459232]
[1673585344682,16.07260497,1411.2,1411.0,1.06174296]
[1673585347318,11.63519826,1411.2,1411.0,1.06174296]
[1673585348124,11.63519826,1411.2,1411.0,9.73167232]
[1673585348375,11.63519826,1411.2,1411.1,1.06174296]
[1673585348590,11.63519826,1411.2,1411.0,18.88475232]
[1673585348747,11.63519826,1411.2,1411.0,18.81875232]
[1673585348959,0.066,1411.2,1411.1,4.15559232]
[1673585349167,1.05604391,1411.4,1411.1,7.15544268]
[1673585349392,23.58129757,1411.5,1411.2,16.73391332]
[1673585349654,23.58129757,1411.5,1411.2,23.82007332]
[1673585350005,21.99554391,1411.5,1411.2,23.82007332]
[1673585350218,21.99554391,1411.5,1411.2,25.40292268]
[1673585350533,21.99554391,1411.5,1411.3,10.0855]
[1673585350743,20.9395,1411.5,1411.3,10.0855]
[1673585351193,12.097,1411.5,1411.3,10.0855]
[1673585351807,13.15304391,1411.5,1411.3,10.0855]
[1673585353209,12.097,1411.5,1411.3,10.0855]
[1673585354023,13.15304391,1411.5,1411.3,10.0855]
[1673585354231,40.82025085,1411.5,1411.3,3.0]
[1673585354468,40.82025085,1411.5,1411.2,3.066]
[1673585354789,40.82025085,1411.5,1411.2,3.0]
[1673585355797,40.82025085,1411.5,1411.1,4.12759332]
[1673585356009,11.16738508,1411.4,1411.1,4.06159332]
[1673585356360,11.23338508,1411.4,1411.1,4.06159332]
[1673585356734,11.23338508,1411.4,1411.1,11.14820332]
[1673585358529,11.23338508,1411.4,1411.1,4.06159332]
[1673585358887,18.31874508,1411.4,1411.1,4.06159332]
[1673585359195,1.83187451,1411.3,1411.1,4.06159332]
[1673585359633,25.40436508,1411.4,1411.1,4.06159332]
[1673585359992,25.40436508,1411.4,1411.1,3.0]
[1673585363489,26.46040899,1411.4,1411.1,3.0]
[1673585363882,25.40436508,1411.4,1411.1,3.0]
[1673585364095,26.46040899,1411.4,1411.1,3.0]
[1673585365147,25.40122666,1411.4,1411.1,3.0]
[1673585367061,26.45727057,1411.4,1411.1,3.0]
[1673585369767,26.45727057,1411.4,1411.0,24.66362722]
[1673585370026,26.45727057,1411.4,1411.0,24.59762722]
[1673585373384,29.09382491,1411.4,1411.0,24.59762722]
[1673585374233,26.45727057,1411.4,1411.0,24.59762722]
[1673585374449,29.09382484,1411.4,1411.0,24.59762722]
[1673585374749,30.6795785,1411.4,1411.0,24.59762722]
[1673585374906,10.15362785,1411.3,1411.0,24.59762722]
[1673585375116,9.15167,1411.3,1411.0,24.59762722]
[1673585375383,7.15167,1411.3,1411.0,24.59762722]
[1673585376487,7.15167,1411.3,1411.0,17.51072722]
[1673585376920,7.15167,1411.3,1411.0,24.59789722]
[1673585377535,7.15167,1411.3,1411.0,26.18074658]
[1673585379574,7.15167,1411.3,1411.1,1.06159332]
[1673585388003,0.066,1411.3,1411.1,1.06159332]
[1673585388212,25.01480818,1411.4,1411.1,1.06159332]
[1673585388645,25.01469368,1411.4,1411.1,1.06159332]
[1673585389266,22.37825391,1411.4,1411.1,2.64444268]
[1673585389442,25.04527273,1411.4,1411.1,4.15544268]
[1673585389815,27.68173387,1411.4,1411.1,2.57259332]
[1673585390336,20.59625387,1411.4,1411.1,2.57259332]
[1673585390640,13.51088387,1411.4,1411.1,2.57259332]
[1673585390803,13.51088387,1411.4,1411.1,11.24207268]
[1673585392706,13.51088387,1411.4,1411.1,18.32873268]
[1673585392707,6.42552387,1411.4,1411.1,18.32873268]
[1673585392930,3.75850505,1411.4,1411.1,18.32873268]
[1673585393136,3.69250505,1411.4,1411.1,18.32873268]
[1673585393479,7.03589111,1411.4,1411.1,18.32873268]
[1673585393686,14.18715111,1411.4,1411.1,18.32873268]
[1673585393942,12.42951871,1411.4,1411.1,18.32873268]
[1673585396217,12.42951871,1411.4,1411.1,16.74588332]
[1673585396624,12.42951871,1411.4,1411.1,18.32873268]
[1673585397260,1.05604391,1411.3,1411.1,16.74588332]
[1673585397480,2.81371799,1411.3,1411.1,16.74788332]
[1673585397633,2.81371799,1411.3,1411.1,16.74588332]
[1673585398067,1.05604391,1411.3,1411.1,18.32873268]
[1673585399642,5.34425871,1411.4,1411.1,18.32873268]
[1673585399858,5.34425871,1411.4,1411.2,1.06159332]
[1673585400261,5.34425871,1411.4,1411.1,25.48136268]
[1673585400471,5.34425871,1411.4,1411.1,25.41536268]
[1673585401356,5.34425871,1411.4,1411.2,1.06159332]
[1673585401572,10.27992496,1411.4,1411.2,1.06159332]
[1673585401934,5.34425871,1411.4,1411.2,1.06159332]
[1673585403959,3.75850505,1411.4,1411.2,1.06159332]
[1673585404162,3.69250505,1411.4,1411.2,8.14774332]
[1673585404371,5.45009655,1411.4,1411.2,8.14774332]
[1673585404602,5.51609655,1411.4,1411.2,8.14774332]
[1673585404777,3.75850505,1411.4,1411.2,8.14774332]
[1673585404986,5.45011839,1411.4,1411.2,8.14774332]
[1673585405198,7.10187205,1411.4,1411.2,8.14774332]
[1673585405407,5.34425871,1411.4,1411.2,8.14774332]
[1673585406098,3.75850505,1411.4,1411.2,8.14774332]
[1673585406264,5.27825871,1411.4,1411.2,8.14774332]
[1673585406458,7.10186873,1411.4,1411.2,8.14774332]
[1673585406668,5.34425871,1411.4,1411.2,8.14774332]
[1673585407118,3.75850505,1411.4,1411.2,8.14774332]
[1673585407456,7.03586939,1411.4,1411.2,8.14774332]
[1673585407662,7.10186939,1411.4,1411.2,8.14774332]
[1673585407986,5.34425871,1411.4,1411.2,8.14774332]
[1673585409217,3.75850505,1411.4,1411.2,8.14774332]
[1673585409427,3.69250505,1411.4,1411.2,8.14774332]
[1673585409671,5.45011412,1411.4,1411.2,8.14774332]
[1673585409955,5.51611412,1411.4,1411.2,8.14774332]
[1673585410182,3.75850505,1411.4,1411.2,8.14774332]
[1673585410423,3.69250505,1411.4,1411.2,8.14774332]
[1673585410594,5.45011123,1411.4,1411.2,8.14774332]
[1673585410808,5.51611123,1411.4,1411.2,8.14774332]
[1673585411015,3.75850505,1411.4,1411.2,8.14774332]
[1673585411265,3.69250505,1411.4,1411.2,8.14774332]
[1673585411428,5.45010063,1411.4,1411.2,8.14774332]
[1673585411640,5.51610063,1411.4,1411.2,8.14774332]
[1673585411858,3.75850505,1411.4,1411.2,8.14774332]
[1673585412062,3.69250505,1411.4,1411.2,8.14774332]
[1673585412290,5.45010104,1411.4,1411.2,8.14774332]
[1673585412519,5.51610104,1411.4,1411.2,8.14774332]
[1673585412725,3.75850505,1411.4,1411.2,8.14774332]
[1673585412923,3.69250505,1411.4,1411.2,8.14774332]
[1673585413116,5.45010129,1411.4,1411.2,8.14774332]
[1673585413322,5.51610129,1411.4,1411.2,8.14774332]
[1673585413583,7.10185495,1411.4,1411.2,8.14774332]
[1673585413741,5.34425871,1411.4,1411.2,8.14774332]
[1673585414294,10.27992496,1411.4,1411.2,7.08615]
[1673585415239,10.27992496,1411.4,1411.2,7.08242755]
[1673585416574,1.05604391,1411.3,1411.2,7.08242755]
[1673585417901,1.05604391,1411.3,1411.1,25.48113268]
[1673585418212,1.05604391,1411.3,1411.1,25.41513268]
[1673585418566,4.2882148,1411.4,1411.2,3.06159332]
[1673585418567,3.75850505,1411.4,1411.2,3.06159332]
[1673585418824,1.05604391,1411.4,1411.3,1.06159332]
[1673585418987,14.73879757,1411.5,1411.3,11.14725332]
[1673585419449,14.73879757,1411.5,1411.3,12.65025332]
[1673585420470,13.15304391,1411.5,1411.3,12.65025332]
[1673585426977,13.15304391,1411.5,1411.3,11.58866]
[1673585429509,16.30739466,1411.5,1411.3,11.58866]
[1673585430605,13.15304391,1411.5,1411.3,11.58866]
[1673585439810,13.14993631,1411.5,1411.3,11.58866]
[1673585446026,13.14993631,1411.5,1411.3,12.65025332]
[1673585446508,12.0938924,1411.5,1411.3,12.65025332]
[1673585447923,13.14993631,1411.5,1411.3,12.65025332]
[1673585448445,31.35063596,1411.5,1411.2,2.63859332]
[1673585448659,33.98683586,1411.5,1411.2,2.57259332]
[1673585450077,1.05604391,1411.4,1411.2,2.57259332]
[1673585450308,8.14123391,1411.4,1411.2,1.06359332]
[1673585450543,8.20723391,1411.4,1411.2,3.0]
[1673585451067,8.20723391,1411.4,1411.1,11.32060823]
[1673585451068,13.63657017,1411.4,1411.1,1.12759332]
[1673585451282,16.27300895,1411.4,1411.1,1.06159332]
[1673585451457,1.6273009,1411.3,1411.1,1.06159332]
[1673585451672,23.35838895,1411.4,1411.1,1.06159332]
[1673585454113,21.77263529,1411.4,1411.1,8.14822332]
[1673585458287,21.77263529,1411.4,1411.1,1.06159332]
[1673585458824,14.68725529,1411.4,1411.1,1.06159332]
[1673585459031,12.05081651,1411.4,1411.1,8.14823332]
[1673585459429,12.05081651,1411.4,1411.1,9.65923332]
[1673585459641,4.96562651,1411.4,1411.1,18.33786299]
[1673585459873,1.05604391,1411.4,1411.1,18.33786299]
[1673585460084,2.81364496,1411.4,1411.1,18.33786299]
[1673585460593,1.05604391,1411.4,1411.1,18.33786299]
[1673585461349,2.81364339,1411.4,1411.1,18.33786299]
[1673585462158,2.81364339,1411.4,1411.1,16.74589332]
[1673585462519,7.69543393,1411.4,1411.1,16.74589332]
[1673585462684,6.00383445,1411.4,1411.1,16.74589332]
[1673585462896,6.00383445,1411.4,1411.1,18.33786299]
[1673585463559,6.00383445,1411.4,1411.1,16.74589332]
[1673585464261,6.00383445,1411.4,1411.1,18.33786299]
[1673585465456,6.00383445,1411.4,1411.1,16.74589332]
[1673585465844,15.72548566,1411.4,1411.1,9.65923332]
[1673585466831,6.00383445,1411.4,1411.1,9.65923332]
[1673585467877,13.08902445,1411.4,1411.1,9.65923332]
[1673585468512,6.00383445,1411.4,1411.1,18.33786299]
[1673585468826,0.066,1411.4,1411.1,18.33786299]
[1673585468992,35.52684808,1411.5,1411.1,18.33786299]
[1673585469203,39.1331808,1411.5,1411.1,18.33786299]
[1673585470179,35.52684808,1411.5,1411.1,25.42452299]
[1673585470385,33.08124209,1411.5,1411.2,8.14760332]
[1673585470654,31.49548843,1411.5,1411.2,8.14760332]
[1673585470823,24.41081843,1411.5,1411.2,8.14760332]
[1673585471033,21.77443631,1411.5,1411.2,15.23376332]
[1673585471248,23.36018997,1411.5,1411.2,14.17217]
[1673585471459,25.99657209,1411.5,1411.2,14.17217]
[1673585472284,23.36018997,1411.5,1411.2,14.17217]
[1673585473042,25.99657209,1411.5,1411.2,14.17217]
[1673585473486,25.99657209,1411.5,1411.2,15.23376332]
[1673585473674,24.41081843,1411.5,1411.2,15.23376332]
[1673585474070,21.77443631,1411.5,1411.2,15.23376332]
[1673585474883,21.77240489,1411.5,1411.2,15.23376332]
[1673585475043,24.40878701,1411.5,1411.2,15.23376332]
[1673585479537,24.40878701,1411.5,1411.2,16.73676332]
[1673585480477,1.05604391,1411.4,1411.2,15.67517]
[1673585480910,42.46401894,1411.5,1411.2,16.73676332]
[1673585482068,42.46401894,1411.5,1411.2,9.65060332]
[1673585482299,1.05604391,1411.4,1411.2,9.65060332]
[1673585482746,2.8136425,1411.4,1411.2,8.58901]
[1673585482964,1.05604391,1411.4,1411.2,9.65060332]
[1673585483172,1.05604391,1411.4,1411.2,8.58901]
[1673585483434,2.81362479,1411.4,1411.2,1.503]
[1673585483647,7.94428677,1411.4,1411.2,1.503]
[1673585483956,6.25270589,1411.4,1411.2,1.503]
[1673585485922,8.88911218,1411.4,1411.2,1.503]
[1673585487078,8.88911218,1411.4,1411.1,25.51029582]
[1673585487262,8.88911218,1411.4,1411.1,25.44429582]
[1673585487824,8.88911218,1411.4,1411.1,18.35789582]
[1673585488426,3.7584502,1411.4,1411.1,18.35789582]
[1673585488625,3.6924502,1411.4,1411.1,11.27149582]
[1673585488833,5.45006243,1411.4,1411.1,11.27149582]